fUSD/lending_fUSD_20260612
["ID","MTS","AMOUNT","RATE_DAILY","PERIOD"]
[424847475,1781202652000,-150.0,0.00023288,2]
[424847478,1781202652000,-929.30350052,0.00023423,2]
[424847476,1781202652000,-653.08,0.000233,7]
[424847480,1781202652000,-225.18697532,0.00023616,2]
[424847479,1781202652000,-300.0,0.00023614,2]
[424847481,1781202652000,-1502.07435806,0.00023616,2]
[424847483,1781202652000,-525.0,0.00023636,7]
[424847482,1781202652000,-2682.57183977,0.00023616,2]
[424847486,1781202652000,-500.0,0.00024,2]
[424847487,1781202652000,-253.0,0.00024,2]
[424847488,1781202652000,-277.0,0.00024,2]
[424847485,1781202652000,-466.629508,0.00024,2]
[424847510,1781202652000,-3556.0,0.00024343,2]
[424847508,1781202652000,-1227.0,0.00024343,2]
[424847511,1781202652000,-500.0,0.00024404,2]
[424847548,1781202652000,-251.11897888,0.0002526,2]
[424847540,1781202652000,-300.0,0.00025007,10]
[424847539,1781202652000,-154.29,0.00025,2]
[424847537,1781202652000,-215.95576085,0.00025,10]
[424847541,1781202652000,-666.0,0.00025007,2]
[424847544,1781202652000,-300.0,0.00025258,10]
[424847545,1781202652000,-621.78829552,0.00025258,2]
[424847547,1781202652000,-775.4783256,0.00025258,2]
[424847543,1781202652000,-500.0,0.00025136,2]
[424847546,1781202652000,-151.0,0.00025258,2]
[424847549,1781202652000,-1502.07435806,0.0002526,2]
[424847550,1781202652000,-2991.49051684,0.0002526,2]
[424847553,1781202652000,-525.0,0.00025515,9]
[424847554,1781202652000,-260.4103811,0.00025808,2]
[424847551,1781202652000,-653.08,0.000253,7]
[424847556,1781202652000,-500.0,0.0002589,2]
[424847555,1781202652000,-1502.07435806,0.00025808,2]
[424847516,1781202652000,-151.0,0.00024658,2]
[424847552,1781202652000,-150.0,0.00025373,2]
[424847538,1781202652000,-160.0,0.00025,10]
[424847536,1781202652000,-19471.82724273,0.00025,10]
[424847542,1781202652000,-1791.83,0.00025008,7]
[424847531,1781202652000,-189.58928416,0.00024889,2]
[424847512,1781202652000,-172.14,0.00024658,2]
[424847514,1781202652000,-151.0,0.00024658,2]
[424847534,1781202652000,-666.0,0.00024999,2]
[424847518,1781202652000,-151.0,0.00024658,2]
[424847517,1781202652000,-151.0,0.00024658,2]
[424847519,1781202652000,-151.0,0.00024658,2]
[424847521,1781202652000,-151.0,0.00024658,2]
[424847523,1781202652000,-999.99999,0.000247,30]
[424847525,1781202652000,-1502.07435806,0.00024712,2]
[424847520,1781202652000,-151.0,0.00024658,2]
[424847526,1781202652000,-2884.75459676,0.00024712,2]
[424847524,1781202652000,-242.15909246,0.00024712,2]
[424847528,1781202652000,-151.0,0.00024878,7]
[424847527,1781202652000,-560.27,0.00024727,7]
[424847529,1781202652000,-1116.21972624,0.0002488,10]
[424847530,1781202652000,-525.0,0.00024889,8]
[424847522,1781202652000,-150.0,0.00024658,2]
[424847535,1781202652000,-164.4954381,0.00025,2]
[424847533,1781202652000,-300.0,0.00024999,10]
[424847532,1781202652000,-1830.04177367,0.00024889,2]
[424847588,1781202653000,-178.59411711,0.00027322,7]
[424847592,1781202653000,-174.40047213,0.00027322,7]
[424847600,1781202653000,-3556.0,0.00027343,2]
[424847601,1781202653000,-525.0,0.00027394,10]
[424847582,1781202653000,-5466.61,0.00027125,3]
[424847584,1781202653000,-166.43965368,0.00027293,7]
[424847587,1781202653000,-150.0748195,0.00027322,7]
[424847590,1781202653000,-156.0553129,0.00027322,7]
[424847593,1781202653000,-188.70233048,0.00027327,7]
[424847586,1781202653000,-166.06626716,0.00027322,7]
[424847591,1781202653000,-153.28769057,0.00027322,2]
[424847607,1781202653000,-150.0,0.00027397,2]
[424847595,1781202653000,-185.32804338,0.00027327,7]
[424847598,1781202653000,-1227.0,0.00027343,2]
[424847597,1781202653000,-382.0,0.00027343,2]
[424847596,1781202653000,-1274.0,0.00027343,2]
[424847599,1781202653000,-6076.0,0.00027343,2]
[424847605,1781202653000,-150.0,0.00027397,2]
[424847602,1781202653000,-500.0,0.00027397,20]
[424847609,1781202653000,-1500.0,0.00027397,2]
[424847611,1781202653000,-760.29,0.00027397,20]
[424847604,1781202653000,-538.02332496,0.00027397,20]
[424847583,1781202653000,-929.30350052,0.00027248,2]
[424847594,1781202653000,-181.85894618,0.00027327,7]
[424847581,1781202653000,-4356.09,0.00027006,120]
[424847565,1781202653000,-612.279922,0.00026384,2]
[424847585,1781202653000,-653.08,0.000273,7]
[424847608,1781202653000,-288.75019747,0.00027397,2]
[424847557,1781202653000,-239.0,0.00025895,2]
[424847558,1781202653000,-550.0,0.00026,2]
[424847559,1781202653000,-525.0,0.00026141,9]
[424847560,1781202653000,-1183.3,0.00026296,2]
[424847564,1781202653000,-612.279922,0.00026384,2]
[424847562,1781202653000,-1502.07435806,0.00026356,2]
[424847563,1781202653000,-612.279922,0.00026384,2]
[424847561,1781202653000,-270.0455652,0.00026356,2]
[424847567,1781202653000,-612.279922,0.00026384,2]
[424847566,1781202653000,-612.279922,0.00026384,2]
[424847589,1781202653000,-151.22155108,0.00027322,7]
[424847569,1781202653000,-612.279922,0.00026384,2]
[424847571,1781202653000,-612.279922,0.00026384,2]
[424847570,1781202653000,-612.279922,0.00026384,2]
[424847572,1781202653000,-612.279922,0.00026384,2]
[424847574,1781202653000,-612.279922,0.00026384,2]
[424847573,1781202653000,-612.279922,0.00026384,2]
[424847577,1781202653000,-1791.83,0.00026677,7]
[424847575,1781202653000,-150.0,0.00026641,2]
[424847576,1781202653000,-500.0,0.00026667,2]
[424847578,1781202653000,-525.0,0.00026768,10]
[424847580,1781202653000,-1502.07435806,0.00026904,2]
[424847579,1781202653000,-280.03725111,0.00026904,2]
[424847568,1781202653000,-612.279922,0.00026384,2]
[424847606,1781202653000,-150.0,0.00027397,2]
[424847657,1781202653000,-370.15,0.00027702,30]
[424847610,1781202653000,-300.0,0.00027397,2]
[424847637,1781202653000,-557.26,0.0002755,30]
[424847639,1781202653000,-557.39,0.0002755,30]
[424847640,1781202653000,-378.79,0.00027572,7]
[424847641,1781202653000,-370.15,0.0002758,7]
[424847645,1781202653000,-247.147394,0.00027581,7]
[424847644,1781202653000,-151.0,0.00027581,7]
[424847646,1781202653000,-370.15,0.00027611,30]
[424847648,1781202653000,-319.0,0.00027621,2]
[424847647,1781202653000,-370.18,0.00027611,30]
[424847649,1781202653000,-370.15,0.00027641,2]
[424847653,1781202653000,-151.0,0.00027691,2]
[424847652,1781202653000,-370.18,0.00027672,7]
[424847651,1781202653000,-370.15,0.00027672,7]
[424847654,1781202653000,-151.0,0.00027691,2]
[424847655,1781202653000,-180.89,0.00027691,2]
[424847656,1781202653000,-151.0,0.00027691,2]
[424847661,1781202653000,-557.39,0.00027711,7]
[424847658,1781202653000,-370.18,0.00027702,30]
[424847663,1781202653000,-370.15,0.00027733,2]
[424847659,1781202653000,-395.15,0.00027711,7]
[424847660,1781202653000,-557.26,0.00027711,7]
[424847662,1781202653000,-378.79,0.00027732,2]
[424847603,1781202653000,-500.0,0.00027397,20]
[424847636,1781202653000,-370.15,0.0002755,2]
[424847638,1781202653000,-370.18,0.0002755,2]
[424847650,1781202653000,-370.18,0.00027641,2]
[424847634,1781202653000,-378.79,0.0002755,30]
[424847612,1781202653000,-154.024201,0.00027397,2]
[424847643,1781202653000,-4356.09,0.00027581,120]
[424847614,1781202653000,-151.0,0.00027397,2]
[424847613,1781202653000,-151.0,0.00027397,2]
[424847617,1781202653000,-151.0,0.00027397,2]
[424847615,1781202653000,-151.0,0.00027397,2]
[424847619,1781202653000,-151.0,0.00027397,2]
[424847616,1781202653000,-151.0,0.00027397,2]
[424847618,1781202653000,-151.0,0.00027397,2]
[424847621,1781202653000,-151.0,0.00027397,2]
[424847622,1781202653000,-151.0,0.00027397,2]
[424847632,1781202653000,-500.0,0.00027467,14]
[424847620,1781202653000,-151.0,0.00027397,2]
[424847628,1781202653000,-240.78,0.000274,7]
[424847624,1781202653000,-151.0,0.00027397,2]
[424847625,1781202653000,-15387.95,0.00027397,10]
[424847626,1781202653000,-12823.29,0.00027397,10]
[424847627,1781202653000,-162.89675845,0.00027397,7]
[424847629,1781202653000,-164.27410988,0.00027452,2]
[424847630,1781202653000,-1502.07435806,0.00027452,2]
[424847642,1781202653000,-370.18,0.0002758,7]
[424847631,1781202653000,-560.27,0.00027454,7]
[424847633,1781202653000,-500.0,0.000275,7]
[424847623,1781202653000,-151.0,0.00027397,2]
[424847635,1781202653000,-395.15,0.0002755,30]
[424847702,1781202654000,-370.15,0.00028068,30]
[424847693,1781202654000,-370.15,0.00028007,2]
[424847703,1781202654000,-370.18,0.00028068,30]
[424847700,1781202654000,-370.18,0.00028038,7]
[424847695,1781202654000,-525.0,0.0002802,11]
[424847697,1781202654000,-557.26,0.00028033,30]
[424847694,1781202654000,-370.18,0.00028007,2]
[424847699,1781202654000,-370.15,0.00028038,7]
[424847696,1781202654000,-395.15,0.00028033,30]
[424847701,1781202654000,-378.79,0.00028053,7]
[424847698,1781202654000,-557.39,0.00028033,30]
[424847704,1781202654000,-370.15,0.00028099,2]
[424847718,1781202654000,-395.15,0.00028355,2]
[424847709,1781202654000,-236.42,0.00028178,3]
[424847708,1781202654000,-4356.09,0.00028156,120]
[424847711,1781202654000,-557.26,0.00028194,7]
[424847710,1781202654000,-395.15,0.00028194,7]
[424847705,1781202654000,-370.18,0.00028099,2]
[424847706,1781202654000,-370.29,0.0002813,7]
[424847713,1781202654000,-378.79,0.00028213,2]
[424847723,1781202654000,-654.67,0.00028426,3]
[424847712,1781202654000,-557.39,0.00028194,7]
[424847714,1781202654000,-1183.3,0.00028267,2]
[424847717,1781202654000,-1791.83,0.00028347,7]
[424847692,1781202654000,-600.0,0.00028,2]
[424847707,1781202654000,-370.22,0.0002813,7]
[424847691,1781202654000,-240.78,0.00028,7]
[424847666,1781202654000,-370.18,0.00027763,7]
[424847690,1781202654000,-1502.07435818,0.00028,2]
[424847716,1781202654000,-172.14,0.0002831,2]
[424847664,1781202654000,-370.18,0.00027733,2]
[424847665,1781202654000,-370.15,0.00027763,7]
[424847672,1781202654000,-370.18,0.00027855,7]
[424847674,1781202654000,-557.26,0.00027872,2]
[424847676,1781202654000,-370.15,0.00027885,30]
[424847667,1781202654000,-370.15,0.00027794,30]
[424847673,1781202654000,-395.15,0.00027872,2]
[424847668,1781202654000,-370.18,0.00027794,30]
[424847669,1781202654000,-370.15,0.00027824,2]
[424847675,1781202654000,-557.39,0.00027872,2]
[424847670,1781202654000,-370.18,0.00027824,2]
[424847671,1781202654000,-370.15,0.00027855,7]
[424847677,1781202654000,-370.18,0.00027885,30]
[424847681,1781202654000,-370.15,0.00027946,7]
[424847679,1781202654000,-370.15,0.00027916,2]
[424847683,1781202654000,-150.0,0.00027973,2]
[424847680,1781202654000,-370.18,0.00027916,2]
[424847682,1781202654000,-370.18,0.00027946,7]
[424847684,1781202654000,-370.15,0.00027977,30]
[424847687,1781202654000,-151.0,0.00027997,2]
[424847685,1781202654000,-370.18,0.00027977,30]
[424847678,1781202654000,-378.79,0.00027892,30]
[424847686,1781202654000,-644.79446245,0.00027997,2]
[424847688,1781202654000,-804.17102365,0.00027997,2]
[424847689,1781202654000,-157.61,0.00027999,14]
[424847715,1781202654000,-500.0,0.00028291,16]
[424847777,1781202654000,-150.0,0.00029,2]
[424847720,1781202654000,-153.42585405,0.00028384,22]
[424847750,1781202654000,-395.15,0.00028838,2]
[424847757,1781202654000,-1066.92674947,0.00029,2]
[424847748,1781202654000,-654.67,0.0002871,5]
[424847758,1781202654000,-10130.8237808,0.00029,2]
[424847753,1781202654000,-642.0,0.000289,2]
[424847756,1781202654000,-119240.08949065,0.00029,7]
[424847754,1781202654000,-157.61,0.00028907,8]
[424847755,1781202654000,-167.46807167,0.00028971,2]
[424847770,1781202654000,-500.0,0.00029,2]
[424847760,1781202654000,-1725.57,0.00029,2]
[424847759,1781202654000,-4027.81,0.00029,2]
[424847763,1781202654000,-162.75,0.00029,2]
[424847761,1781202654000,-571.59838,0.00029,2]
[424847762,1781202654000,-152.92684082,0.00029,2]
[424847764,1781202654000,-161.5,0.00029,2]
[424847766,1781202654000,-161.91,0.00029,2]
[424847765,1781202654000,-160.0,0.00029,30]
[424847769,1781202654000,-500.0,0.00029,2]
[424847767,1781202654000,-162.63,0.00029,2]
[424847768,1781202654000,-163.25,0.00029,2]
[424847771,1781202654000,-500.0,0.00029,2]
[424847774,1781202654000,-500.0,0.00029,2]
[424847773,1781202654000,-500.0,0.00029,2]
[424847772,1781202654000,-215.95576085,0.00029,7]
[424847775,1781202654000,-500.0,0.00029,2]
[424847752,1781202654000,-872.89,0.00028892,4]
[424847751,1781202654000,-378.84,0.00028855,30]
[424847776,1781202654000,-395.18,0.00029,30]
[424847747,1781202654000,-378.79,0.00028693,2]
[424847749,1781202654000,-653.08,0.000288,7]
[424847721,1781202654000,-654.67,0.00028385,14]
[424847722,1781202654000,-872.89,0.00028418,5]
[424847725,1781202654000,-378.79,0.00028533,7]
[424847727,1781202654000,-377.40466096,0.00028561,7]
[424847726,1781202654000,-363.71789236,0.00028561,7]
[424847724,1781202654000,-395.15,0.00028516,30]
[424847728,1781202654000,-152.59230985,0.00028583,7]
[424847730,1781202654000,-153.84416623,0.00028595,7]
[424847732,1781202654000,-189.92424285,0.00028613,7]
[424847733,1781202654000,-300.149639,0.00028613,7]
[424847731,1781202654000,-240.78,0.000286,7]
[424847734,1781202654000,-357.18823422,0.00028613,7]
[424847719,1781202654000,-378.79,0.00028373,30]
[424847746,1781202654000,-395.15,0.00028677,7]
[424847729,1781202654000,-332.87930736,0.00028584,7]
[424847745,1781202654000,-488.39395664,0.00028676,2]
[424847738,1781202654000,-163.46200504,0.00028613,7]
[424847744,1781202654000,-525.0,0.00028646,11]
[424847740,1781202654000,-332.13253432,0.00028613,7]
[424847741,1781202654000,-325.7935169,0.00028618,7]
[424847743,1781202654000,-4356.09,0.0002863,120]
[424847737,1781202654000,-306.57538114,0.00028613,2]
[424847735,1781202654000,-302.44310216,0.00028613,7]
[424847742,1781202654000,-370.65608675,0.00028618,7]
[424847736,1781202654000,-312.1106258,0.00028613,7]
[424847739,1781202654000,-348.80094426,0.00028613,7]
[424847815,1781202655000,-468.16593869,0.00029474,7]
[424847817,1781202655000,-459.86307171,0.00029474,2]
[424847814,1781202655000,-453.66465325,0.00029474,7]
[424847810,1781202655000,-307.68833246,0.00029456,7]
[424847804,1781202655000,-566.10699145,0.00029421,7]
[424847803,1781202655000,-545.57683854,0.00029421,7]
[424847812,1781202655000,-450.2244585,0.00029474,7]
[424847806,1781202655000,-218.2486721,0.00029443,7]
[424847816,1781202655000,-326.92401008,0.00029474,7]
[424847807,1781202655000,-305.18461971,0.00029443,7]
[424847818,1781202655000,-523.20141639,0.00029474,7]
[424847823,1781202655000,-181.66088399,0.0002948,7]
[424847822,1781202655000,-198.36476642,0.00029474,7]
[424847819,1781202655000,-207.178928,0.00029474,5]
[424847821,1781202655000,-498.19880149,0.00029474,7]
[424847813,1781202655000,-535.78235134,0.00029474,7]
[424847825,1781202655000,-205.40773364,0.0002948,7]
[424847824,1781202655000,-213.66750967,0.0002948,7]
[424847826,1781202655000,-244.64774395,0.0002948,7]
[424847827,1781202655000,-199.02709662,0.0002948,7]
[424847829,1781202655000,-488.69027535,0.0002948,7]
[424847831,1781202655000,-242.81820882,0.0002948,7]
[424847834,1781202655000,-157.61,0.00029529,12]
[424847833,1781202655000,-152.0,0.00029523,3]
[424847820,1781202655000,-379.8484857,0.00029474,7]
[424847805,1781202655000,-208.75109454,0.00029443,7]
[424847799,1781202655000,-4356.09,0.00029315,120]
[424847808,1781202655000,-499.31896103,0.00029444,7]
[424847832,1781202655000,-208.97055616,0.00029481,7]
[424847780,1781202655000,-248.0,0.00029181,30]
[424847781,1781202655000,-269.0,0.00029181,30]
[424847779,1781202655000,-500.0,0.0002914,17]
[424847778,1781202655000,-1019.89,0.000291,4]
[424847783,1781202655000,-345.0,0.00029181,30]
[424847782,1781202655000,-880.0,0.00029181,30]
[424847785,1781202655000,-802.0,0.00029181,30]
[424847784,1781202655000,-206.0,0.00029181,30]
[424847787,1781202655000,-1292.0,0.00029181,30]
[424847786,1781202655000,-364.0,0.00029181,30]
[424847789,1781202655000,-241.0,0.00029181,30]
[424847790,1781202655000,-199.0,0.00029181,30]
[424847788,1781202655000,-389.0,0.00029181,30]
[424847791,1781202655000,-715.0,0.00029181,30]
[424847801,1781202655000,-399.0,0.00029347,2]
[424847793,1781202655000,-151.0,0.00029224,2]
[424847797,1781202655000,-525.0,0.00029273,12]
[424847796,1781202655000,-151.0,0.00029224,2]
[424847795,1781202655000,-151.0,0.00029224,2]
[424847794,1781202655000,-151.0,0.00029224,2]
[424847800,1781202655000,-573.23,0.00029335,2]
[424847798,1781202655000,-644.07,0.00029309,2]
[424847802,1781202655000,-150.0,0.00029372,2]
[424847811,1781202655000,-247.42429171,0.00029474,7]
[424847809,1781202655000,-211.25981778,0.00029454,7]
[424847792,1781202655000,-260.0,0.00029181,30]
[424847828,1781202655000,-151.4770914,0.0002948,7]
[424847835,1781202655000,-525.0,0.00029899,13]
[424847866,1781202655000,-569.77272854,0.00030048,7]
[424847868,1781202655000,-396.72953284,0.00030048,7]
[424847864,1781202655000,-414.35785599,0.00030048,5]
[424847862,1781202655000,-613.15076228,0.00030048,2]
[424847867,1781202655000,-664.26506865,0.00030048,7]
[424847869,1781202655000,-363.32176798,0.00030054,7]
[424847874,1781202655000,-221.93409433,0.00030054,7]
[424847871,1781202655000,-427.33501934,0.00030054,7]
[424847873,1781202655000,-408.95943969,0.00030054,7]
[424847878,1781202655000,-371.43930954,0.00030054,7]
[424847875,1781202655000,-157.05731674,0.00030054,7]
[424847865,1781202655000,-194.26899729,0.00030048,7]
[424847879,1781202655000,-427.82696669,0.00030054,7]
[424847876,1781202655000,-271.75815348,0.00030054,7]
[424847880,1781202655000,-302.95418279,0.00030054,7]
[424847877,1781202655000,-425.24853701,0.00030054,7]
[424847881,1781202655000,-651.58703379,0.00030054,7]
[424847884,1781202655000,-424.56355346,0.00030054,7]
[424847883,1781202655000,-330.70243617,0.00030054,7]
[424847886,1781202655000,-741.31217351,0.00030054,7]
[424847885,1781202655000,-201.15418835,0.00030054,7]
[424847887,1781202655000,-485.63641763,0.00030054,7]
[424847888,1781202655000,-179.09813948,0.00030054,7]
[424847830,1781202655000,-555.98413013,0.0002948,7]
[424847882,1781202655000,-344.97576152,0.00030054,7]
[424847861,1781202655000,-490.38601512,0.00030048,7]
[424847872,1781202655000,-410.81546729,0.00030054,7]
[424847863,1781202655000,-697.60188852,0.00030048,7]
[424847859,1781202655000,-253.32091426,0.00030048,7]
[424847840,1781202655000,-4356.09,0.0003,120]
[424847843,1781202655000,-650.0,0.0003,2]
[424847842,1781202655000,-160.0,0.0003,120]
[424847836,1781202655000,-12846.51081558,0.000299,2]
[424847838,1781202655000,-37541.341886,0.0003,7]
[424847841,1781202655000,-26985.49117731,0.0003,5]
[424847837,1781202655000,-632.51512164,0.000299,2]
[424847839,1781202655000,-316.0841448,0.0003,120]
[424847845,1781202655000,-500.0,0.00030014,19]
[424847846,1781202655000,-459.54652211,0.00030015,2]
[424847852,1781202655000,-354.98947477,0.00030027,7]
[424847854,1781202655000,-292.74392776,0.00030048,7]
[424847844,1781202655000,-215.95576085,0.0003,30]
[424847860,1781202655000,-624.22125159,0.00030048,7]
[424847857,1781202655000,-714.37646845,0.00030048,7]
[424847855,1781202655000,-494.84858342,0.00030048,7]
[424847856,1781202655000,-600.299278,0.00030048,7]
[424847847,1781202655000,-1791.83,0.00030016,7]
[424847858,1781202655000,-604.88620433,0.00030048,7]
[424847851,1781202655000,-665.75861471,0.00030027,7]
[424847850,1781202655000,-422.51963555,0.00030027,7]
[424847848,1781202655000,-417.50218907,0.00030017,7]
[424847849,1781202655000,-457.77692956,0.00030017,7]
[424847870,1781202655000,-321.27317265,0.00030054,7]
[424847853,1781202655000,-461.53249869,0.00030029,7]
[424847925,1781202656000,-293.0,0.00030137,2]
[424847920,1781202656000,-320.0,0.00030137,15]
[424847926,1781202656000,-300.0,0.00030137,2]
[424847924,1781202656000,-300.0,0.00030137,2]
[424847918,1781202656000,-575.4,0.00030131,2]
[424847923,1781202656000,-300.0,0.00030137,2]
[424847921,1781202656000,-167.46895398,0.00030137,40]
[424847927,1781202656000,-300.0,0.00030137,2]
[424847919,1781202656000,-210.14,0.00030137,5]
[424847929,1781202656000,-350.0,0.00030137,2]
[424847922,1781202656000,-10000.0,0.00030137,30]
[424847928,1781202656000,-270.0,0.00030137,2]
[424847935,1781202656000,-248.0,0.00030181,30]
[424847930,1781202656000,-350.0,0.00030137,2]
[424847938,1781202656000,-345.0,0.00030181,30]
[424847931,1781202656000,-216.0,0.00030137,2]
[424847939,1781202656000,-206.0,0.00030181,30]
[424847936,1781202656000,-269.0,0.00030181,30]
[424847934,1781202656000,-560.27,0.00030181,7]
[424847933,1781202656000,-396.12,0.00030177,2]
[424847932,1781202656000,-150.0,0.00030137,30]
[424847940,1781202656000,-802.0,0.00030181,30]
[424847942,1781202656000,-1292.0,0.00030181,30]
[424847941,1781202656000,-364.0,0.00030181,30]
[424847937,1781202656000,-880.0,0.00030181,30]
[424847917,1781202656000,-12329.5723623,0.0003013,2]
[424847890,1781202656000,-255.61378965,0.00030055,7]
[424847910,1781202656000,-1314.640837,0.00030105,7]
[424847889,1781202656000,-417.94111231,0.00030055,7]
[424847893,1781202656000,-727.43578472,0.00030055,7]
[424847891,1781202656000,-489.29548791,0.00030055,7]
[424847892,1781202656000,-398.05419325,0.00030055,7]
[424847894,1781202656000,-754.80932193,0.00030055,7]
[424847896,1781202656000,-3886.1230234,0.00030105,2]
[424847895,1781202656000,-90723.0259512,0.00030095,2]
[424847897,1781202656000,-3226.6831669,0.00030105,2]
[424847899,1781202656000,-135791.2150534,0.00030105,2]
[424847898,1781202656000,-255053.2742672,0.00030105,2]
[424847903,1781202656000,-1451.861569,0.00030105,7]
[424847902,1781202656000,-1451.861569,0.00030105,7]
[424847904,1781202656000,-151.0,0.00030105,7]
[424847900,1781202656000,-1451.861569,0.00030105,7]
[424847901,1781202656000,-1451.861569,0.00030105,7]
[424847905,1781202656000,-151.0,0.00030105,7]
[424847908,1781202656000,-1314.640837,0.00030105,7]
[424847915,1781202656000,-612.279922,0.00030105,7]
[424847914,1781202656000,-612.279922,0.00030105,7]
[424847907,1781202656000,-165.675864,0.00030105,7]
[424847909,1781202656000,-1314.640837,0.00030105,7]
[424847906,1781202656000,-151.0,0.00030105,7]
[424847912,1781202656000,-612.279922,0.00030105,7]
[424847913,1781202656000,-151.0,0.00030105,7]
[424847911,1781202656000,-1314.640837,0.00030105,7]
[424847916,1781202656000,-612.279922,0.00030105,7]
[424847945,1781202656000,-199.0,0.00030181,30]
[424847943,1781202656000,-389.0,0.00030181,30]
[424847946,1781202656000,-715.0,0.00030181,30]
[424847976,1781202656000,-150.0,0.00030714,30]
[424847980,1781202656000,-320.0,0.00030795,17]
[424847979,1781202656000,-531.19172529,0.00030736,2]
[424847981,1781202656000,-317.1,0.000308,4]
[424847978,1781202656000,-151.0,0.00030736,2]
[424847984,1781202656000,-580.30664716,0.0003092,2]
[424847983,1781202656000,-500.0,0.00030915,21]
[424847982,1781202656000,-150.0,0.00030841,2]
[424847985,1781202656000,-482.21,0.00030981,2]
[424847987,1781202656000,-150.0,0.00031002,30]
[424847986,1781202656000,-500.0,0.00031,120]
[424847988,1781202656000,-575.4,0.00031005,2]
[424847989,1781202656000,-4356.09,0.00031033,120]
[424847994,1781202656000,-525.0,0.00031152,14]
[424847990,1781202656000,-399.0,0.00031074,3]
[424847995,1781202656000,-248.0,0.00031181,30]
[424847992,1781202656000,-210.43,0.00031096,5]
[424847993,1781202656000,-320.0,0.00031113,18]
[424847991,1781202656000,-929.30350052,0.00031074,2]
[424847997,1781202656000,-880.0,0.00031181,30]
[424847998,1781202656000,-345.0,0.00031181,30]
[424847999,1781202656000,-206.0,0.00031181,30]
[424847996,1781202656000,-269.0,0.00031181,30]
[424848001,1781202656000,-364.0,0.00031181,30]
[424848000,1781202656000,-802.0,0.00031181,30]
[424847975,1781202656000,-150.0,0.0003069,2]
[424847977,1781202656000,-668.65185756,0.00030736,2]
[424847947,1781202656000,-260.0,0.00030181,30]
[424847972,1781202656000,-814.48379224,0.00030628,7]
[424847944,1781202656000,-241.0,0.00030181,30]
[424847950,1781202656000,-1274.0,0.00030343,2]
[424847949,1781202656000,-1183.3,0.00030239,2]
[424847948,1781202656000,-482.21,0.00030188,2]
[424847952,1781202656000,-1227.0,0.00030343,2]
[424847960,1781202656000,-525.0,0.00030525,13]
[424847961,1781202656000,-832.19826839,0.00030591,7]
[424847974,1781202656000,-6051.0,0.0003069,10]
[424847959,1781202656000,-37541.341886,0.00030524,7]
[424847955,1781202656000,-653.08,0.000304,7]
[424847954,1781202656000,-3556.0,0.00030343,2]
[424847956,1781202656000,-150.0,0.00030425,30]
[424847958,1781202656000,-320.0,0.00030469,16]
[424847951,1781202656000,-382.0,0.00030343,2]
[424847957,1781202656000,-4356.09,0.00030451,120]
[424847953,1781202656000,-6076.0,0.00030343,2]
[424847971,1781202656000,-909.2947309,0.00030628,7]
[424847970,1781202656000,-943.51165241,0.00030628,7]
[424847968,1781202656000,-872.00236065,0.00030622,7]
[424847966,1781202656000,-780.27656449,0.00030622,7]
[424847969,1781202656000,-830.33133581,0.00030622,7]
[424847965,1781202656000,-756.10775541,0.00030622,7]
[424847973,1781202656000,-926.64021689,0.00030628,7]
[424847964,1781202656000,-892.97058556,0.00030622,7]